[Event "Israel-ch Semi-final 2022"]
[Site "Ramat Gan"]
[Date "2022.06.27"]
[Round "8.2"]
[White "Poleg, Matan"]
[Black "Raiko, Yossi"]
[Result "1-0"]
[ECO "E14"]
[WhiteElo "2225"]
[BlackElo "1923"]
[Annotator "RC"]
[PlyCount "123"]
[EventDate "2022.05.09"]
[EventType "swiss"]
[EventCountry "ISR"]
[SourceTitle "playchess.com"]
[Source "ChessBase"]
[SourceQuality "1"]
[TimeControl "40/5400+30:1800+30"]

1. d4 {[%emt 0:00:29]} Nf6 {[%emt 0:00:05]} 2. Nf3 {[%emt 0:00:40]} e6 {[%emt 0:00:23]} 3. c4 {[%emt 0:00:43]} d5 {[%emt 0:00:31]} 4. e3 {[%emt 0:02:24]} Be7 {[%emt 0:01:53]} 5. b3 {[%emt 0:00:17]} O-O {[%emt 0:02:14]} 6. Bd3 {[%emt 0:00:06]} b6 {[%emt 0:01:06]} 7. O-O {[%emt 0:00:16]} Bb7 {[%emt 0:00:28]} 8. cxd5 {[%emt 0:01:24]} exd5 {[%emt 0:03:42]} 9. Bb2 {[%emt 0:00:52]} Nbd7 {[%emt 0:02:46]} 10. Nc3 {[%emt 0:00:54]} c5 {[%emt 0:08:20]} 11. Ne5 {[%emt 0:02:10]} Ne4 {[%emt 0:14:49]} 12. Ne2 {[%emt 0:06:09]} Bf6 {[%emt 0:21:48]} 13. f3 {[%emt 0:07:51]} Ng5 {[%emt 0:04:35]} 14. Ng3 {[%emt 0:03:24]} cxd4 {[%emt 0:01:46]} 15. exd4 {[%emt 0:06:11]} g6 {[%emt 0:01:02]} 16. Bb5 {[%emt 0:01:40]} Nxe5 {[%emt 0:03:06]} 17. dxe5 {[%emt 0:00:16]} Bg7 {[%emt 0:02:09]} 18. f4 {[%emt 0:04:36]} Ne4 {[%emt 0:00:40]} 19. Nxe4 {[%emt 0:00:33]} dxe4 {[%emt 0:00:11]} 20. Ba3 {[%emt 0:00:44]} Qxd1 {[%emt 0:02:23]} 21. Rfxd1 {[%emt 0:00:02]} Rfd8 {[%emt 0:02:19]} 22. Be7 {[%emt 0:00:33]} Rdc8 {[%emt 0:02:17]} 23. Rac1 {[%emt 0:01:44]} Bf8 {[%emt 0:05:40]} 24. Bxf8 {[%emt 0:02:22]} Kxf8 {[%emt 0:01:09]} 25. g3 {[%emt 0:00:48]} Rxc1 {[%emt 0:07:43]} 26. Rxc1 {[%emt 0:00:17]} Rc8 {[%emt 0:01:24]} 27. Rxc8+ {[%emt 0:00:34]} Bxc8 {[%emt 0:00:01]} 28. Kf2 {[%emt 0:00:12]} f5 {[%emt 0:01:43]} 29. exf6 {[%emt 0:00:06]} Kf7 {[%emt 0:00:13]} 30. Bc6 {[%emt 0:00:07]} Kxf6 {[%emt 0:00:43]} 31. Ke3 {[%emt 0:00:07]} g5 {[%emt 0:01:07]} 32. Bxe4 {[%emt 0:00:31]} h6 {[%emt 0:01:44]} 33. Kf3 {[%emt 0:02:26]} Be6 {[%emt 0:00:51]} 34. fxg5+ {[%emt 0:01:07]} hxg5 {[%emt 0:00:26]} 35. h4 {[%emt 0:00:04]} gxh4 {[%emt 0:00:08]} 36. gxh4 {[%emt 0:00:03]} a5 {[%emt 0:00:32]} 37. Kf4 {[%emt 0:00:12]} a4 {[%emt 0:00:45]} 38. Bc2 {[%emt 0:00:34]} axb3 {[%emt 0:03:44]} 39. Bxb3 {[%emt 0:00:01]} Bh3 {[%emt 0:01:34]} 40. a3 {[%emt 0:00:53]} Kg6 {[%emt 0:00:48]} 41. Bd1 {[%emt 0:30:08]} Bf1 {[%emt 0:04:14]} 42. Ke5 {[%emt 0:00:00]} Kh6 {[%emt 0:05:08]} 43. Bf3 {[%emt 0:00:00]} Bd3 {[%emt 0:01:06]} 44. Bg4 {[%emt 0:00:00]} Bf1 {[%emt 0:00:31]} 45. Kd6 {[%emt 0:00:00]} Bd3 {[%emt 0:01:14]} 46. Kc6 {[%emt 0:00:00]} b5 {[%emt 0:00:18]} 47. Kc5 {[%emt 0:00:00]} Bf1 {[%emt 0:01:36]} 48. Kd4 {[%emt 0:00:00]} Bc4 {[%emt 0:01:16]} 49. Ke3 {[%emt 0:00:00]} Kg6 {[%emt 0:04:31]} 50. Be2 {[%emt 0:00:00]} Bb3 {[%emt 0:01:43]} 51. Kd4 {[%emt 0:00:00]} Kh6 {[%emt 0:00:28]} 52. Kc5 {[%emt 0:00:00]} Bc2 {[%emt 0:00:25]} 53. Kxb5 {[%emt 0:00:00]} Kg6 {[%emt 0:00:27]} 54. Kb4 {[%emt 0:00:00]} Kh6 {[%emt 0:00:24]} 55. Bc4 {[%emt 0:00:00]} Kh5 {[%emt 0:00:50]} 56. Bb3 {[%emt 0:00:00]} Bd3 {[%emt 0:05:28]} 57. a4 {[%emt 0:00:00]} Kxh4 {[%emt 0:00:06]} 58. a5 {[%emt 0:00:00]} Kg5 {[%emt 0:03:37]} 59. Bc4 {[%emt 0:00:00]} Be4 {[%emt 0:00:15]} 60. a6 {[%emt 0:00:00]} Kf6 {[%emt 0:00:15]} 61. Kc5 {[%emt 0:00:00]} Ke5 {[%emt 0:04:03]} 62. a7 {[%emt 1:07:00]} 1-0

[Event "Israel-ch Semi-final 2022"]
[Site "Ramat Gan"]
[Date "2022.06.27"]
[Round "8.3"]
[White "Ben Ari, Yannay"]
[Black "Vaisman, Felix"]
[Result "1/2-1/2"]
[ECO "A04"]
[WhiteElo "2409"]
[BlackElo "2096"]
[Annotator "TA"]
[PlyCount "71"]
[EventDate "2022.05.09"]
[EventType "swiss"]
[EventCountry "ISR"]
[SourceTitle "playchess.com"]
[Source "ChessBase"]
[SourceQuality "1"]
[TimeControl "40/5400+30:1800+30"]

{[%evp 9,71,0,1,8,12,-2,1,-6,6,10,0,7,22,0,14,7,14,-46,-30,-20,-33,-33,-36,-29,-25,-26,-11,-34,-37,-43,0,0,0,0,0,0,0,0,0,0,0,-2,0,0,0,0,0,0,0,0,0,0,0,0,0,0,0,0,0,0,0,0,0,0]} 1. Nf3 {[%emt 0:00:06]} c5 {[%emt 0:00:53]} 2. b3 {[%emt 0:01:53]} d6 {[%emt 0:02:28]} 3. c4 {[%emt 0:00:27]} e5 {[%emt 0:00:25]} 4. d3 {[%emt 0:04:17]} f5 {[%emt 0:02:32]} 5. Bb2 {[%emt 0:00:03]} Nf6 {[%emt 0:00:22]} 6. g3 {[%emt 0:03:02] A04: Unusual lines after 1 Nf3 and King's Indian Attack.} g6 {[%emt 0:01:43]} 7. Bg2 {[%emt 0:00:07][%cal Ob3b4]} Bg7 {[%emt 0:00:04]} 8. O-O {[%emt 0:00:49]} O-O {[%emt 0:00:19]} 9. Nc3 {[%emt 0:00:15]} Nc6 {[%emt 0:01:21][%cal Bb8c6,Bc6d4,Bd4f5][%mdl 32]} 10. a3 {[%emt 0:01:05] [#]} h6 $146 {[%emt 0:02:28]} ({Predecessor:} 10... a5 11. e3 Kh8 12. Nd2 g5 13. Nd5 Nxd5 14. cxd5 Ne7 15. b4 b6 16. bxc5 bxc5 {½-½ (36) Bricard,E (2478)-Bacrot,E (2720) Belfort 2010}) 11. Nd5 {[%emt 0:12:59]} Nxd5 {[%emt 0:12:36]} 12. cxd5 {[%emt 0:00:14]} Nd4 {[%emt 0:00:50]} 13. Ne1 {[%emt 0:11:08]} (13. Nd2 $11) 13... f4 {[%emt 0:04:01]} (13... Qb6 $5 {[%cal Rb6b3]}) 14. e3 {[%emt 0:13:25]} fxe3 {[%emt 0:07:30]} 15. fxe3 {[%emt 0:01:18]} Rxf1+ {[%emt 0:00:42]} 16. Bxf1 {[%emt 0:00:02]} Nf5 {[%emt 0:00:50]} 17. Ng2 {[%emt 0:02:13]} Qg5 {[%emt 0:06:22]} 18. Qe2 {[%emt 0:03:46]} h5 {[%emt 0:03:32]} 19. b4 {[%emt 0:03:24]} h4 {[%emt 0:08:54]} 20. e4 {[%emt 0:02:44] The position is equal.} Nd4 {[%emt 0:01:56]} 21. Bxd4 {[%emt 0:01:24]} cxd4 {[%emt 0:00:22]} 22. gxh4 {[%emt 0:02:17]} Qh6 {[%emt 0:01:53]} 23. Qf3 {[%emt 0:07:41]} Bd7 {[%emt 0:02:21]} 24. Qg3 {[%emt 0:00:04]} Rc8 {[%emt 0:12:04]} 25. Re1 {[%emt 0:02:07]} Bf6 {[%emt 0:04:29]} 26. Be2 {[%emt 0:02:20]} Kf7 {[%emt 0:02:19]} 27. Bg4 {[%emt 0:02:25]} Bxg4 {[%emt 0:04:15]} 28. Qxg4 {[%emt 0:00:01]} Rc1 $1 {[%emt 0:00:57]} 29. Rf1 {[%emt 0:21:40]} Rxf1+ {[%emt 0:02:24]} 30. Kxf1 $11 {[%emt 0:00:01][%mdl 4096] Endgame KQB-KQN} Qd2 {[%emt 0:01:01]} 31. Qh3 {[%emt 0:02:07]} Qc1+ {[%emt 0:02:31]} 32. Ne1 {[%emt 0:00:21]} Qf4+ {[%emt 0:00:54]} 33. Kg2 {[%emt 0:00:42]} Qd2+ {[%emt 0:01:44]} 34. Kf1 {[%emt 0:00:03]} Qf4+ {[%emt 0:00:09]} 35. Kg2 {[%emt 0:00:58] Nf3 is the strong threat.} Qd2+ {[%emt 0:00:16]} 36. Kf1 {[%emt 0:00:01] Weighted Error Value: White=0.07 (flawless) /Black=0.03 (flawless)} 1/2-1/2

[Event "Israel-ch Semi-final 2022"]
[Site "Ramat Gan"]
[Date "2022.06.27"]
[Round "8.4"]
[White "Rozen, Guy"]
[Black "Yaniv, Ori"]
[Result "0-1"]
[ECO "D02"]
[WhiteElo "1967"]
[BlackElo "2143"]
[Annotator "RC"]
[PlyCount "68"]
[EventDate "2022.05.09"]
[EventType "swiss"]
[EventCountry "ISR"]
[SourceTitle "playchess.com"]
[Source "ChessBase"]
[SourceQuality "1"]
[TimeControl "40/5400+30:1800+30"]

1. d4 {[%emt 0:07:12]} Nf6 {[%emt 0:00:06]} 2. Bf4 {[%emt 0:00:04]} d5 {[%emt 0:00:58]} 3. e3 {[%emt 0:00:54]} c5 {[%emt 0:00:11]} 4. Nf3 {[%emt 0:00:55]} Nc6 {[%emt 0:00:06]} 5. Nbd2 {[%emt 0:01:55]} Bg4 {[%emt 0:03:01]} 6. c3 {[%emt 0:00:28]} e6 {[%emt 0:00:30]} 7. Qb3 {[%emt 0:08:41]} Qb6 {[%emt 0:06:14]} 8. Qxb6 {[%emt 0:08:03]} axb6 {[%emt 0:00:03]} 9. Bb5 {[%emt 0:00:09]} Bxf3 {[%emt 0:07:30]} 10. Nxf3 {[%emt 0:01:35]} Nd7 {[%emt 0:00:58]} 11. O-O {[%emt 0:05:39]} f6 {[%emt 0:02:35]} 12. h4 {[%emt 0:16:10]} Ra5 {[%emt 0:02:53]} 13. a4 {[%emt 0:01:47]} Be7 {[%emt 0:07:21]} 14. Rfe1 {[%emt 0:13:05]} Na7 {[%emt 0:15:12]} 15. b4 {[%emt 0:04:09]} cxb4 {[%emt 0:01:15]} 16. cxb4 {[%emt 0:00:30]} Bxb4 {[%emt 0:49:37]} 17. Rec1 {[%emt 0:27:44]} Nxb5 {[%emt 0:00:00]} 18. Rc8+ {[%emt 0:00:00]} Kf7 {[%emt 0:00:00]} 19. Rxh8 {[%emt 0:00:00]} Nf8 {[%emt 0:00:00]} 20. Rb1 {[%emt 0:00:00]} Rxa4 {[%emt 0:00:00]} 21. Ne1 {[%emt 0:00:00]} Ng6 {[%emt 0:00:00]} 22. Rb8 {[%emt 0:00:00]} Nxf4 {[%emt 0:00:00]} 23. Rxb7+ {[%emt 0:00:00]} Kg6 {[%emt 0:00:00]} 24. exf4 {[%emt 0:00:00]} Nxd4 {[%emt 0:00:00]} 25. Rxb6 {[%emt 0:00:00]} Bd2 {[%emt 0:00:00]} 26. Nd3 {[%emt 0:00:00]} Ne2+ {[%emt 0:00:00]} 27. Kf1 {[%emt 0:00:00]} Nxf4 {[%emt 0:00:00]} 28. Nxf4+ {[%emt 0:00:00]} Rxf4 {[%emt 0:00:00]} 29. Rxe6 {[%emt 0:00:00]} Rxh4 {[%emt 0:00:00]} 30. Rb7 {[%emt 0:00:00]} Rh1+ {[%emt 0:00:00]} 31. Ke2 {[%emt 0:00:00]} Re1+ {[%emt 0:00:00]} 32. Kxd2 {[%emt 0:00:00]} Rxe6 {[%emt 0:00:00]} 33. Rd7 {[%emt 0:00:00]} Re5 {[%emt 0:00:00]} 34. g4 {[%emt 0:00:00]} h5 {[%emt 0:00:00]} 0-1

[Event "Israel-ch Semi-final 2022"]
[Site "Ramat Gan"]
[Date "2022.06.27"]
[Round "8.5"]
[White "Bin-Nun, Peleg"]
[Black "Shimshovich, Asaf"]
[Result "0-1"]
[ECO "B81"]
[WhiteElo "2056"]
[BlackElo "1816"]
[Annotator "NA RC"]
[PlyCount "104"]
[EventDate "2022.05.09"]
[EventType "swiss"]
[EventCountry "ISR"]
[SourceTitle "playchess.com"]
[Source "ChessBase"]
[SourceQuality "1"]
[TimeControl "40/5400+30:1800+30"]

1. e4 {[%emt 0:00:10]} c5 {[%emt 0:00:03]} 2. Nf3 {[%emt 0:00:34]} e6 {[%emt 0:00:09]} 3. d4 {[%emt 0:00:06]} cxd4 {[%emt 0:00:06]} 4. Nxd4 {[%emt 0:00:03]} Nf6 {[%emt 0:00:05]} 5. Nc3 {[%emt 0:00:06]} d6 {[%emt 0:00:03]} 6. g4 {[%emt 0:00:12]} e5 {[%emt 0:00:16]} 7. Bb5+ {[%emt 0:00:28]} Bd7 {[%emt 0:00:09]} 8. Bxd7+ {[%emt 0:00:11]} Qxd7 {[%emt 0:00:06]} 9. Nf5 {[%emt 0:00:16]} h5 {[%emt 0:01:23]} 10. gxh5 {[%emt 0:03:10]} Nxh5 {[%emt 0:03:25]} 11. Nd5 {[%emt 0:02:54]} g6 {[%emt 0:20:15]} 12. Nfe3 {[%emt 0:04:40]} Nc6 {[%emt 0:04:08]} 13. Qxh5 {[%emt 0:05:59]} Rxh5 {[%emt 0:03:32]} 14. Nf6+ {[%emt 0:00:04]} Kd8 {[%emt 0:00:15]} 15. Nxd7 {[%emt 0:00:06]} Kxd7 {[%emt 0:00:30]} 16. Nd5 {[%emt 0:00:43]} Be7 {[%emt 0:03:12]} 17. Nxe7 {[%emt 0:23:51]} Kxe7 {[%emt 0:03:31]} 18. Kf1 {[%emt 0:02:27]} Nd4 {[%emt 0:02:50]} 19. c3 {[%emt 0:01:20]} Nf3 {[%emt 0:01:56]} 20. Ke2 {[%emt 0:23:17]} Rh3 {[%emt 0:10:36]} 21. Be3 {[%emt 0:06:31]} f5 {[%emt 0:15:25]} 22. exf5 {[%emt 0:00:18]} gxf5 {[%emt 0:00:10]} 23. a4 {[%emt 0:00:22]} f4 {[%emt 0:02:42]} 24. Bc1 {[%emt 0:00:25]} Rg8 {[%emt 0:06:24]} 25. a5 {[%emt 0:02:10]} Nxh2 {[%emt 0:05:43]} 26. Ra4 {[%emt 0:00:44]} Kd7 {[%emt 0:06:37]} 27. Rb4 {[%emt 0:00:57]} Kc6 {[%emt 0:02:46]} 28. Rc4+ {[%emt 0:01:23]} Kd7 {[%emt 0:00:53]} 29. Rb4 {[%emt 0:00:08]} Kc6 {[%emt 0:00:09]} 30. Rc4+ {[%emt 0:00:04]} Kd5 {[%emt 0:04:11]} 31. Rc7 {[%emt 0:01:10]} Rg2 {[%emt 0:00:12]} 32. Rxb7 {[%emt 0:04:47]} Rf3 {[%emt 0:00:31]} 33. Rd1+ {[%emt 0:11:43]} Ke4 {[%emt 0:01:34]} 34. Rd2 {[%emt 0:01:45]} Rg1 {[%emt 0:02:13]} 35. Rd1 {[%emt 0:02:24]} Rxf2+ {[%emt 0:00:10]} 36. Kxf2 {[%emt 0:00:12]} Rxd1 {[%emt 0:00:05]} 37. Bxf4 {[%emt 0:01:28]} Kxf4 {[%emt 0:00:29]} 38. Ke2 {[%emt 0:00:41]} Rb1 {[%emt 0:00:26]} 39. Kd2 {[%emt 0:01:09]} Nf1+ {[%emt 0:01:11]} 40. Kc2 {[%emt 0:00:31]} Ra1 {[%emt 0:00:54]} 41. Rf7+ {[%emt 0:02:17]} Ke4 {[%emt 0:06:26]} 42. Rxa7 {[%emt 0:00:24]} Ne3+ {[%emt 0:00:34]} 43. Kb3 {[%emt 0:00:34]} Kd3 {[%emt 0:00:37]} 44. Kb4 {[%emt 0:02:46]} Rb1 {[%emt 0:07:54]} 45. Kb3 {[%emt 0:01:05]} Nc4 {[%emt 0:00:59]} 46. a6 {[%emt 0:01:07]} Rxb2+ {[%emt 0:00:25]} 47. Ka4 {[%emt 0:00:03]} Kxc3 {[%emt 0:00:47]} 48. Rb7 {[%emt 0:00:24]} Ra2+ {[%emt 0:01:11]} 49. Kb5 {[%emt 0:00:04]} Ra5+ {[%emt 0:00:08]} 50. Kc6 {[%emt 0:00:13]} Rxa6+ {[%emt 0:00:22]} 51. Kd5 {[%emt 0:00:05]} Ra5+ {[%emt 0:00:34]} 52. Ke4 {[%emt 0:00:09]} d5+ {[%emt 0:00:11]} 0-1

[Event "Israel-ch Semi-final 2022"]
[Site "Ramat Gan"]
[Date "2022.06.27"]
[Round "8.7"]
[White "Ribshtein, Nati"]
[Black "Meirovich, Ilay"]
[Result "1-0"]
[ECO "D36"]
[WhiteElo "2286"]
[BlackElo "1768"]
[Annotator "TA"]
[PlyCount "57"]
[EventDate "2022.05.09"]
[EventType "swiss"]
[EventCountry "ISR"]
[SourceTitle "playchess.com"]
[Source "ChessBase"]
[SourceQuality "1"]
[TimeControl "40/5400+30:1800+30"]

{[%evp 24,57,34,14,18,18,64,31,43,32,174,170,220,225,231,248,475,452,462,416,555,524,552,562,548,542,544,551,555,533,672,672,789,783,1039,1023]} 1. d4 {[%emt 0:02:04]} Nf6 {[%emt 0:00:06]} 2. c4 {[%emt 0:00:07]} e6 {[%emt 0:00:08]} 3. Nc3 {[%emt 0:00:46]} d5 {[%emt 0:01:20]} 4. cxd5 {[%emt 0:00:11]} exd5 {[%emt 0:00:08]} 5. Bg5 {[%emt 0:00:07]} c6 {[%emt 0:02:16]} 6. e3 {[%emt 0:00:44]} Nbd7 {[%emt 0:00:43]} 7. Bd3 {[%emt 0:00:19]} Be7 {[%emt 0:00:12]} 8. Nge2 {[%emt 0:00:18]} O-O {[%emt 0:00:24]} 9. O-O {[%emt 0:00:08]} Re8 {[%emt 0:03:39]} 10. Qc2 {[%emt 0:00:14]} h6 {[%emt 0:00:39]} 11. Bh4 {[%emt 0:00:27]} Ne4 {[%emt 0:00:29]} 12. Bxe7 {[%emt 0:01:23]} Qxe7 {[%emt 0:00:06]} 13. Rae1 {[%emt 0:09:47]} Nef6 {[%emt 0:08:11] D36: Queen's Gambit Declined: Exchange Variation: Main line (5 Bg5 c6 6 Qc2).} 14. Ng3 {[%emt 0:01:48]} c5 {[%emt 0:01:44] [#]} (14... Nb6 $11) 15. Nf5 $146 {[%emt 0:09:36] White is much more active.} ({Predecessor:} 15. Qd2 a6 16. e4 cxd4 17. Nxd5 Qd8 18. Bb1 Nxd5 19. exd5 Rxe1 20. Rxe1 Nf6 21. Qxd4 {1-0 (56) Raahul,V (2478)-Neelabh,J (1780) Guwahati 2022}) 15... Qd8 {[%emt 0:01:54] White is slightly better.} 16. b3 {[%emt 0:05:42]} Qa5 {[%emt 0:03:26] [#]} (16... cxd4 $14 17. exd4 Nf8) 17. Nb5 $1 $18 {[%emt 0:08:56]} Re6 {[%emt 0:02:56]} (17... Nf8 $142) 18. b4 {[%emt 0:11:36]} cxb4 {[%emt 0:00:49]} 19. Nc7 {[%emt 0:02:14]} Kf8 $2 {[%emt 0:08:54]} (19... Rc6 {was necessary.} 20. Ne7+ Kh8 21. Nxc6 Qxc7) 20. Nxa8 {[%emt 0:03:03]} Rc6 {[%emt 0:00:18]} 21. Qe2 {[%emt 0:00:53]} Ne4 {[%emt 0:02:38]} 22. Bxe4 {[%emt 0:03:28] White is clearly winning.} dxe4 {[%emt 0:00:02]} 23. d5 {[%emt 0:07:31]} Qxd5 {[%emt 0:00:53]} 24. Nd4 {[%emt 0:00:06]} Rc5 {[%emt 0:01:26]} 25. Rc1 {[%emt 0:00:17]} b6 {[%emt 0:01:36]} 26. Nc7 {[%emt 0:00:49]} Qe5 {[%emt 0:01:03]} 27. Na6 {[%emt 0:00:31]} Qg5 {[%emt 0:01:28]} 28. Nxc5 {[%emt 0:01:15]} bxc5 {[%emt 0:00:15]} 29. Qb5 {[%emt 0:00:58] White took control after the opening.  Weighted Error Value: White=0.06 (flawless) /Black=0.66} 1-0

[Event "Israel-ch Semi-final 2022"]
[Site "Ramat Gan"]
[Date "2022.06.27"]
[Round "8.8"]
[White "Shifrin, Evgeny"]
[Black "Chernomordik, Pavel"]
[Result "0-1"]
[ECO "A00"]
[WhiteElo "1802"]
[BlackElo "2178"]
[Annotator "RC"]
[PlyCount "138"]
[EventDate "2022.05.09"]
[EventType "swiss"]
[EventCountry "ISR"]
[SourceTitle "playchess.com"]
[Source "ChessBase"]
[SourceQuality "1"]
[TimeControl "40/5400+30:1800+30"]

1. g3 {[%emt 0:00:07]} h5 {[%emt 0:00:22]} 2. h4 {[%emt 0:00:10]} g6 {[%emt 0:00:06]} 3. Bg2 {[%emt 0:00:19]} Bg7 {[%emt 0:00:01]} 4. e4 {[%emt 0:01:28]} c5 {[%emt 0:03:44]} 5. Ne2 {[%emt 0:03:38]} Nc6 {[%emt 0:00:34]} 6. Nbc3 {[%emt 1:27:48]} Rb8 {[%emt 0:01:16]} 7. a4 {[%emt 0:00:00]} Nf6 {[%emt 0:06:22]} 8. d3 {[%emt 0:00:00]} d6 {[%emt 0:01:55]} 9. O-O {[%emt 0:00:00]} a6 {[%emt 0:00:28]} 10. Bg5 {[%emt 0:00:00]} b5 {[%emt 0:01:51]} 11. axb5 {[%emt 0:00:00]} axb5 {[%emt 0:00:01]} 12. Qd2 {[%emt 0:00:00]} Nd7 {[%emt 0:10:02]} 13. Rab1 {[%emt 0:00:00]} Nde5 {[%emt 0:03:43]} 14. Nd5 {[%emt 0:00:00]} f6 {[%emt 0:06:53]} 15. Bf4 {[%emt 0:00:00]} e6 {[%emt 0:03:25]} 16. Ndc3 {[%emt 0:00:00]} b4 {[%emt 0:02:32]} 17. Nd1 {[%emt 0:00:00]} Nf7 {[%emt 0:00:06]} 18. Be3 {[%emt 0:00:00]} e5 {[%emt 0:04:22]} 19. f4 {[%emt 0:00:00]} Nh6 {[%emt 0:05:54]} 20. Nf2 {[%emt 0:00:00]} Ng4 {[%emt 0:00:11]} 21. Nxg4 {[%emt 0:00:00]} Bxg4 {[%emt 0:00:13]} 22. c3 {[%emt 0:00:00]} O-O {[%emt 0:02:19]} 23. fxe5 {[%emt 0:00:00]} fxe5 {[%emt 0:01:08]} 24. Rxf8+ {[%emt 0:00:00]} Bxf8 {[%emt 0:00:30]} 25. Rf1 {[%emt 0:00:00]} Bg7 {[%emt 0:04:02]} 26. Bg5 {[%emt 0:00:00]} Qd7 {[%emt 0:09:10]} 27. Kh2 {[%emt 0:00:00]} Nd8 {[%emt 0:01:12]} 28. Ng1 {[%emt 0:00:00]} Nf7 {[%emt 0:03:53]} 29. Be3 {[%emt 0:00:00]} bxc3 {[%emt 0:00:49]} 30. bxc3 {[%emt 0:00:00]} Be6 {[%emt 0:05:26]} 31. Bh3 {[%emt 0:00:00]} Bxh3 {[%emt 0:02:25]} 32. Nxh3 {[%emt 0:00:00]} Qb5 {[%emt 0:02:33]} 33. Rf2 {[%emt 0:00:48]} Qb1 {[%emt 0:01:31]} 34. Qa2 {[%emt 0:02:23]} Qxa2 {[%emt 0:01:51]} 35. Rxa2 {[%emt 0:00:11]} Nh6 {[%emt 0:01:40]} 36. Nf2 {[%emt 0:00:35]} Bf8 {[%emt 0:01:13]} 37. Kg2 {[%emt 0:02:09]} Kf7 {[%emt 0:03:35]} 38. Kf3 {[%emt 0:00:39]} Ke6 {[%emt 0:00:43]} 39. c4 {[%emt 0:01:04]} Nf7 {[%emt 0:00:42]} 40. Ra6 {[%emt 0:01:21]} Kd7 {[%emt 0:01:57]} 41. Ra7+ {[%emt 0:30:53]} Ke8 {[%emt 0:30:02]} 42. Ra6 {[%emt 0:01:37]} Be7 {[%emt 0:01:34]} 43. Nh3 {[%emt 0:00:00]} Rb3 {[%emt 0:00:00]} 44. Ra8+ {[%emt 0:00:00]} Nd8 {[%emt 0:00:00]} 45. Ke2 {[%emt 0:00:00]} Rb2+ {[%emt 0:00:00]} 46. Kf3 {[%emt 0:00:00]} Kf7 {[%emt 0:00:00]} 47. Ra7 {[%emt 0:00:00]} Ke6 {[%emt 0:00:00]} 48. Ra6 {[%emt 0:00:00]} Kd7 {[%emt 0:00:00]} 49. Ra7+ {[%emt 0:00:00]} Ke8 {[%emt 0:00:00]} 50. Ra8 {[%emt 0:00:00]} Kf7 {[%emt 0:00:00]} 51. Ra6 {[%emt 0:00:00]} Ne6 {[%emt 0:00:00]} 52. Ra7 {[%emt 0:00:00]} Nd4+ {[%emt 0:00:00]} 53. Bxd4 {[%emt 0:00:00]} cxd4 {[%emt 0:00:00]} 54. Ra6 {[%emt 0:00:44]} Rc2 {[%emt 0:00:00]} 55. Ra7 {[%emt 0:01:40]} Ke6 {[%emt 0:00:00]} 56. Ra6 {[%emt 0:00:42]} Bd8 {[%emt 0:01:17]} 57. Ra8 {[%emt 0:00:19]} Bb6 {[%emt 0:02:10]} 58. Ng5+ {[%emt 0:00:47]} Kd7 {[%emt 0:00:26]} 59. Nh3 {[%emt 0:01:42]} Bd8 {[%emt 0:02:27]} 60. Ra6 {[%emt 0:00:20]} Rd2 {[%emt 0:00:23]} 61. Ra3 {[%emt 0:00:44]} Kc6 {[%emt 0:00:21]} 62. Rb3 {[%emt 0:00:23]} Ba5 {[%emt 0:00:30]} 63. Nf2 {[%emt 0:00:45]} Rc2 {[%emt 0:02:47]} 64. Rb1 {[%emt 0:00:35]} Bd2 {[%emt 0:00:43]} 65. Nd1 {[%emt 0:04:42]} Be1 {[%emt 0:04:37]} 66. Rb2 {[%emt 0:00:21]} Rc1 {[%emt 0:00:07]} 67. Nf2 {[%emt 0:00:38]} Rc3 {[%emt 0:00:35]} 68. Rb8 {[%emt 0:03:31]} Rc2 {[%emt 0:01:52]} 69. Nd1 {[%emt 0:00:07]} Rd2 {[%emt 0:00:32]} 0-1